fUSD/lending_fUSD_20241024
["ID","MTS","AMOUNT","RATE_DAILY","PERIOD"]
[340741206,1729770642406,-859.58,0.00060273,120]
[340741207,1729770642414,-500.0,0.00060273,120]
[340741208,1729770642424,-500.0,0.00060273,120]
[340741209,1729770642434,-500.0,0.00060273,120]
[340741210,1729770642444,-500.0,0.00060273,120]
[340741211,1729770642453,-500.0,0.00060273,120]
[340741212,1729770642463,-500.0,0.00060273,120]
[340741213,1729770642473,-500.0,0.00060273,120]
[340741214,1729770642483,-515.32111987,0.00060273,120]
[340741215,1729770642493,-500.0,0.00060273,120]
[340741216,1729770642502,-500.0,0.00060273,120]
[340741217,1729770642512,-3575.92,0.00060273,120]
[340741218,1729770642521,-500.0,0.00060273,120]
[340741219,1729770642531,-500.0,0.00060273,120]
[340741220,1729770642540,-500.0,0.00060273,120]
[340741221,1729770642549,-500.0,0.00060273,120]
[340741222,1729770642558,-500.0,0.00060273,120]
[340741224,1729770642580,-720.96,0.00060273,120]
[340741225,1729770642589,-500.0,0.00060273,120]
[340741226,1729770642598,-500.0,0.00060273,120]
[340741228,1729770642608,-500.0,0.00060273,120]
[340741229,1729770642617,-500.0,0.00060273,120]
[340741230,1729770642626,-500.0,0.00060273,120]
[340741231,1729770642636,-500.0,0.00060273,120]
[340741232,1729770642645,-500.0,0.00060273,120]
[340741233,1729770642655,-500.0,0.00060273,120]
[340741234,1729770642665,-500.0,0.00060273,120]
[340741235,1729770642674,-425.31880171,0.00060273,120]
[340741236,1729770642683,-379.49685617,0.00060273,120]
[340741237,1729770642692,-500.0,0.00060273,120]
[340741238,1729770642702,-500.0,0.00060273,120]
[340741239,1729770642712,-500.0,0.00060273,120]
[340741240,1729770642721,-507.46868131,0.00060273,120]
[340741241,1729770642731,-157.12378,0.00060273,120]
[340741242,1729770642741,-157.12378,0.00060273,120]
[340741243,1729770642752,-902.51,0.00060273,120]
[340741244,1729770642762,-157.12378,0.00060273,120]
[340741245,1729770642771,-157.12378,0.00060273,120]
[340741246,1729770642781,-157.12378,0.00060273,120]
[340741248,1729770642790,-157.12378,0.00060273,120]
[340741249,1729770642799,-157.12378,0.00060273,120]
[340741250,1729770642808,-157.12378,0.00060273,120]
[340741251,1729770642818,-157.12378,0.00060273,120]
[340741252,1729770642827,-500.0,0.00060273,120]
[340741253,1729770642837,-157.12378,0.00060273,120]
[340741254,1729770642846,-500.0,0.00060273,120]
[340741255,1729770642855,-500.0,0.00060273,120]
[340741256,1729770642865,-500.0,0.00060273,120]
[340741257,1729770642875,-541.21,0.00060273,120]
[340741258,1729770642885,-500.0,0.00060273,120]
[340741259,1729770642894,-500.0,0.00060273,120]
[340741260,1729770642904,-507.11869263,0.00060273,120]
[340741261,1729770642914,-500.0,0.00060273,120]
[340741262,1729770642923,-500.0,0.00060273,120]
[340741263,1729770642932,-500.0,0.00060273,120]
[340741264,1729770642942,-500.0,0.00060273,120]
[340741265,1729770642952,-500.0,0.00060273,120]
[340741266,1729770642961,-898.97,0.00060273,120]
[340741267,1729770642971,-500.0,0.00060273,120]
[340741268,1729770642980,-186.31674632,0.00060273,120]
[340741269,1729770642989,-500.0,0.00060273,120]
[340741270,1729770642998,-518.20516539,0.00060273,120]
[340741271,1729770643008,-500.0,0.00060273,120]
[340741272,1729770643018,-883.91,0.00060273,120]
[340741273,1729770643027,-500.0,0.00060273,120]
[340741274,1729770643037,-500.0,0.00060273,120]
[340741275,1729770643047,-622.25,0.00060273,120]
[340741276,1729770643056,-4880.54,0.00060273,120]
[340741277,1729770643067,-502.26265883,0.00060273,120]
[340741278,1729770643076,-898.7,0.00060273,120]
[340741279,1729770643086,-1555.96,0.00060273,120]
[340741280,1729770643095,-500.0,0.00060273,120]
[340741281,1729770643105,-500.0,0.00060273,120]
[340741282,1729770643114,-515.1369,0.00060273,120]
[340741283,1729770643123,-500.0,0.00060273,120]
[340741284,1729770643132,-524.51,0.00060273,120]
[340741285,1729770643142,-1699.04,0.00060273,120]
[340741286,1729770643151,-500.0,0.00060273,120]
[340741288,1729770643160,-1000.0,0.00060273,120]
[340741290,1729770643169,-500.0,0.00060273,120]
[340741292,1729770643179,-500.0,0.00060273,120]
[340741294,1729770643188,-500.0,0.00060273,120]
[340741296,1729770643197,-500.0,0.00060273,120]
[340741298,1729770643207,-764.73,0.00060273,120]
[340741300,1729770643216,-500.0,0.00060273,120]
[340741302,1729770643226,-663.54,0.00060273,120]
[340741304,1729770643236,-500.0,0.00060273,120]
[340741306,1729770643245,-500.0,0.00060273,120]
[340741308,1729770643254,-500.0,0.00060273,120]
[340741309,1729770643263,-898.61,0.00060273,120]
[340741311,1729770643272,-500.0,0.00060273,120]
[340741313,1729770643285,-500.0,0.00060273,120]
[340741315,1729770643295,-227.53548582,0.00060273,120]
[340741317,1729770643304,-500.0,0.00060273,120]
[340741319,1729770643314,-514.81566,0.00060273,120]
[340741321,1729770643325,-514.81566,0.00060273,120]
[340741323,1729770643335,-514.81566,0.00060273,120]
[340741325,1729770643345,-514.81566,0.00060273,120]
[340741327,1729770643356,-514.81566,0.00060273,120]
[340741329,1729770643365,-514.81566,0.00060273,120]
[340741331,1729770643375,-514.81566,0.00060273,120]
[340741333,1729770643384,-1452.21,0.00060273,120]
[340741335,1729770643394,-514.81566,0.00060273,120]
[340741337,1729770643403,-514.81566,0.00060273,120]
[340741339,1729770643412,-500.0,0.00060273,120]
[340741341,1729770643421,-295.44617848,0.00060273,120]
[340741343,1729770643431,-514.81566,0.00060273,120]
[340741345,1729770643440,-514.81566,0.00060273,120]
[340741347,1729770643450,-514.81566,0.00060273,120]
[340741349,1729770643460,-514.81566,0.00060273,120]
[340741351,1729770643469,-514.81567,0.00060273,120]
[340741353,1729770643478,-13644.44,0.00060273,120]
[340741355,1729770643488,-500.0,0.00060273,120]
[340741357,1729770643497,-500.0,0.00060273,120]
[340741359,1729770643507,-500.0,0.00060273,120]
[340741361,1729770643516,-500.0,0.00060273,120]
[340741363,1729770643526,-500.0,0.00060273,120]
[340741365,1729770643536,-500.0,0.00060273,120]
[340741367,1729770643545,-500.0,0.00060273,120]
[340741368,1729770643555,-150.0,0.00060273,120]
[340741370,1729770643564,-500.0,0.00060273,120]
[340741372,1729770643574,-510.25,0.00060273,120]
[340741374,1729770643584,-539.88,0.00060273,120]
[340741376,1729770643594,-16013.8,0.00060273,5]
[340741378,1729770643605,-500.0,0.00060273,120]
[340741380,1729770643615,-500.0,0.00060273,120]
[340741382,1729770643625,-283.98054623,0.00060273,120]
[340741384,1729770643635,-500.0,0.00060273,120]
[340741386,1729770643645,-381.1,0.00060273,7]
[340741388,1729770643654,-500.0,0.00060273,120]
[340741390,1729770643664,-671.29,0.00060273,120]
[340741392,1729770643674,-500.0,0.00060273,120]
[340741395,1729770643684,-500.0,0.00060273,120]
[340741396,1729770643693,-529.99,0.00060273,120]
[340741398,1729770643702,-500.0,0.00060273,120]
[340741400,1729770643712,-500.0,0.00060273,120]
[340741402,1729770643721,-500.0,0.00060273,120]
[340741404,1729770643731,-725.63,0.00060273,120]
[340741406,1729770643740,-1262.9,0.00060273,120]
[340741408,1729770643749,-500.0,0.00060273,120]
[340741410,1729770643759,-5826.9,0.00060273,120]
[340741412,1729770643768,-1870.81,0.00060273,120]
[340741414,1729770643777,-500.0,0.00060273,120]
[340741416,1729770643786,-518.14,0.00060273,120]
[340741418,1729770643795,-521.29,0.00060273,120]
[340741420,1729770643804,-500.0,0.00060273,120]
[340741422,1729770643814,-953.95,0.00060273,7]
[340741424,1729770643824,-500.0,0.00060273,120]
[340741426,1729770643834,-500.0,0.00060273,120]
[340741428,1729770643843,-500.0,0.00060273,120]
[340741430,1729770643852,-317.72552528,0.00060273,120]
[340741432,1729770643862,-500.0,0.00060273,120]
[340741434,1729770643871,-500.0,0.00060273,120]
[340741436,1729770643880,-500.0,0.00060273,120]
[340741438,1729770643889,-1000.0,0.00060273,120]
[340741440,1729770643898,-364.34881917,0.00060273,120]
[340741442,1729770643908,-500.0,0.00060273,120]
[340741444,1729770643917,-150.0,0.00060273,120]
[340741445,1729770643926,-500.0,0.00060273,120]
[340741447,1729770643936,-509.98415751,0.00060273,120]
[340741450,1729770643945,-187.87874901,0.00060273,120]
[340741452,1729770643955,-500.0,0.00060273,120]
[340741461,1729770644040,-500.0,0.00060273,120]
[340741463,1729770644050,-500.0,0.00060273,120]
[340741465,1729770644060,-500.0,0.00060273,120]
[340741467,1729770644070,-1473.4,0.00060273,120]
[340741469,1729770644079,-500.0,0.00060273,120]
[340741471,1729770644090,-23014.84,0.00060273,120]
[340741473,1729770644099,-228.2241528,0.00060273,120]
[340741475,1729770644108,-500.0,0.00060273,120]
[340741477,1729770644118,-1061.17,0.00060273,120]
[340741479,1729770644127,-500.0,0.00060273,120]
[340741480,1729770644136,-500.0,0.00060273,120]
[340741482,1729770644145,-1889.61,0.00060273,120]
[340741484,1729770644156,-500.0,0.00060273,120]
[340741486,1729770644165,-500.0,0.00060273,120]
[340741488,1729770644175,-500.0,0.00060273,7]
[340741490,1729770644185,-603.35196314,0.00060273,120]
[340741493,1729770644196,-500.0,0.00060273,120]
[340741495,1729770644206,-500.0,0.00060273,120]
[340741497,1729770644217,-500.0,0.00060273,120]
[340741499,1729770644226,-500.0,0.00060273,120]
[340741500,1729770644236,-509.28312181,0.00060273,120]
[340741502,1729770644246,-500.0,0.00060273,120]
[340741504,1729770644255,-510.94756824,0.00060273,120]
[340741506,1729770644264,-500.0,0.00060273,120]
[340741508,1729770644274,-500.0,0.00060273,120]
[340741510,1729770644286,-1000.0,0.00060273,120]
[340741512,1729770644296,-5499.42,0.00060273,120]
[340741514,1729770644306,-500.0,0.00060273,120]
[340741516,1729770644317,-500.0,0.00060273,120]
[340741518,1729770644328,-500.0,0.00060273,120]
[340741520,1729770644337,-500.0,0.00060273,120]
[340741522,1729770644346,-500.0,0.00060273,120]
[340741524,1729770644357,-515.53,0.00060273,120]
[340741526,1729770644366,-541.02,0.00060273,120]
[340741528,1729770644376,-500.0,0.00060273,120]
[340741529,1729770644386,-279.21373526,0.00060273,120]
[340741532,1729770644395,-500.0,0.00060273,120]
[340741533,1729770644405,-500.0,0.00060273,120]
[340741535,1729770644414,-348.86911913,0.00060273,120]
[340741538,1729770644424,-500.0,0.00060273,120]
[340741540,1729770644434,-500.0,0.00060273,120]
[340741542,1729770644444,-569.8419604,0.00060273,120]
[340741543,1729770644454,-560.22,0.00060273,120]
[340741544,1729770644464,-508.61,0.00060273,120]
[340741546,1729770644473,-500.0,0.00060273,120]
[340741547,1729770644484,-500.0,0.00060273,120]
[340741548,1729770644494,-500.0,0.00060273,120]
[340741549,1729770644503,-571.65630755,0.00060273,120]
[340741550,1729770644513,-500.0,0.00060273,120]
[340741551,1729770644523,-500.0,0.00060273,120]
[340741552,1729770644534,-592.46293212,0.00060273,120]
[340741553,1729770644544,-500.0,0.00060273,120]
[340741554,1729770644555,-500.0,0.00060273,120]
[340741555,1729770644567,-500.0,0.00060273,120]
[340741556,1729770644578,-500.0,0.00060273,2]
[340741557,1729770644588,-500.0,0.00060273,120]
[340741558,1729770644598,-1548.55,0.00060273,120]
[340741559,1729770644609,-500.0,0.00060273,120]
[340741560,1729770644618,-500.0,0.00060273,120]
[340741561,1729770644629,-500.0,0.00060273,120]
[340741562,1729770644638,-500.0,0.00060273,120]
[340741563,1729770644648,-200.0,0.00060273,120]
[340741564,1729770644659,-500.0,0.00060273,120]
[340741565,1729770644669,-956.25,0.00060273,120]
[340741566,1729770644679,-547.53486777,0.00060273,120]
[340741567,1729770644690,-1040.84,0.00060273,120]
[340741568,1729770644701,-500.0,0.00060273,120]
[340741569,1729770644710,-500.0,0.00060273,120]
[340741570,1729770644721,-582.09,0.00060273,120]
[340741571,1729770644731,-1377.02,0.00060273,120]
[340741572,1729770644742,-500.0,0.00060273,120]
[340741573,1729770644752,-500.0,0.00060273,120]
[340741574,1729770644762,-150.0,0.000603,2]
[340741575,1729770644772,-1000.0,0.00060373,120]
[340741576,1729770644782,-150.0,0.00060542,30]
[340741577,1729770644791,-1299.26,0.00060547,120]
[340741578,1729770644802,-500.0,0.00060547,120]
[340741579,1729770644812,-500.0,0.00060547,120]
[340741580,1729770644822,-500.0,0.00060547,120]
[340741581,1729770644832,-150.0,0.00060547,120]
[340741582,1729770644842,-1001.09812193,0.00060547,120]
[340741583,1729770644852,-500.0,0.00060547,120]
[340741584,1729770644861,-500.0,0.00060547,120]
[340741585,1729770644874,-500.0,0.00060547,120]
[340741586,1729770644884,-500.0,0.00060547,120]
[340741587,1729770644893,-604.01913745,0.00060547,120]
[340741588,1729770644903,-525.54603165,0.00060547,120]
[340741589,1729770644914,-500.0,0.00060547,120]
[340741590,1729770644925,-943.4,0.00060547,120]
[340741591,1729770644935,-500.0,0.00060547,120]
[340741592,1729770644945,-500.0,0.00060547,120]
[340741593,1729770644956,-500.0,0.00060547,120]
[340741594,1729770644966,-500.0,0.00060547,120]
[340741595,1729770644975,-507.96,0.00060547,120]
[340741596,1729770644985,-500.0,0.00060547,120]
[340741597,1729770644995,-534.72,0.00060547,120]
[340741598,1729770645005,-500.0,0.00060547,120]
[340741599,1729770645015,-516.68239593,0.00060547,120]
[340741600,1729770645026,-500.0,0.00060547,120]
[340741601,1729770645035,-301.08149947,0.00060547,120]
[340741602,1729770645045,-1738.65,0.00060547,120]
[340741603,1729770645055,-655.38,0.00060547,120]
[340741604,1729770645065,-500.0,0.00060547,120]
[340741605,1729770645076,-500.0,0.00060547,120]
[340741606,1729770645085,-500.0,0.00060547,120]
[340741607,1729770645094,-700.0,0.00060547,120]
[340741608,1729770645105,-500.0,0.00060547,120]
[340741609,1729770645115,-500.0,0.00060547,120]
[340741610,1729770645125,-1000.0,0.00060547,120]
[340741611,1729770645134,-500.0,0.00060547,120]
[340741612,1729770645144,-1176.07,0.00060547,120]
[340741613,1729770645155,-500.0,0.00060547,120]
[340741614,1729770645166,-500.0,0.00060547,120]
[340741615,1729770645177,-505.3052041,0.00060547,120]
[340741616,1729770645187,-500.0,0.00060547,120]
[340741617,1729770645197,-878.78,0.00060547,120]
[340741618,1729770645207,-500.0,0.00060547,120]
[340741619,1729770645217,-500.0,0.00060547,120]
[340741620,1729770645226,-1980.98,0.00060547,120]
[340741621,1729770645236,-894.75,0.00060547,120]
[340741622,1729770645246,-522.91279989,0.00060547,120]
[340741623,1729770645256,-500.0,0.00060547,120]
[340741624,1729770645266,-579.03,0.00060547,120]
[340741625,1729770645278,-500.0,0.00060547,120]
[340741626,1729770645291,-500.0,0.00060547,120]
[340741627,1729770645301,-500.0,0.00060547,120]
[340741628,1729770645312,-500.0,0.00060547,120]
[340741629,1729770645323,-500.0,0.00060547,120]
[340741630,1729770645334,-500.0,0.00060547,120]
[340741631,1729770645344,-500.0,0.00060547,120]
[340741632,1729770645355,-500.0,0.00060547,120]
[340741633,1729770645366,-500.0,0.00060547,120]
[340741634,1729770645376,-500.0,0.00060547,120]
[340741635,1729770645386,-500.0,0.00060547,120]
[340741636,1729770645396,-500.0,0.00060547,120]
[340741637,1729770645407,-500.0,0.00060547,120]
[340741638,1729770645418,-500.0,0.00060547,120]
[340741639,1729770645429,-500.0,0.00060547,120]
[340741640,1729770645440,-500.0,0.00060547,120]
[340741641,1729770645451,-586.95690185,0.00060547,120]
[340741642,1729770645462,-500.0,0.00060547,120]
[340741643,1729770645472,-500.0,0.00060547,120]
[340741644,1729770645482,-579.71,0.00060547,120]
[340741645,1729770645492,-500.0,0.00060547,120]
[340741646,1729770645501,-1003.46,0.00060547,120]
[340741647,1729770645511,-500.0,0.00060547,120]
[340741648,1729770645521,-500.0,0.00060547,120]
[340741649,1729770645531,-500.0,0.00060547,120]
[340741650,1729770645541,-500.0,0.00060547,120]
[340741651,1729770645551,-500.0,0.00060547,120]
[340741652,1729770645562,-500.0,0.00060547,120]
[340741656,1729770645653,-978.86,0.00060547,120]
[340741657,1729770645664,-500.0,0.00060547,120]
[340741659,1729770645673,-500.0,0.00060547,120]
[340741661,1729770645683,-500.0,0.00060547,120]
[340741662,1729770645692,-1000.0,0.00060547,120]
[340741663,1729770645702,-500.0,0.00060547,120]
[340741664,1729770645712,-500.0,0.00060547,120]
[340741665,1729770645721,-509.58366972,0.00060547,120]
[340741666,1729770645731,-500.0,0.00060547,120]
[340741667,1729770645740,-500.0,0.00060547,120]
[340741668,1729770645749,-500.0,0.00060547,120]
[340741669,1729770645759,-500.0,0.00060547,120]
[340741670,1729770645768,-500.0,0.00060547,120]
[340741671,1729770645779,-500.0,0.00060547,120]
[340741672,1729770645788,-907.35,0.00060547,120]
[340741673,1729770645799,-298.67954312,0.00060547,120]
[340741674,1729770645808,-500.0,0.00060547,120]
[340741675,1729770645818,-500.0,0.00060547,120]
[340741676,1729770645828,-500.0,0.00060547,120]
[340741677,1729770645837,-524.77,0.00060547,120]
[340741678,1729770645846,-500.0,0.00060547,120]
[340741679,1729770645855,-500.0,0.00060547,120]
[340741680,1729770645866,-500.0,0.00060547,120]
[340741681,1729770645874,-544.00963453,0.00060547,120]
[340741682,1729770645884,-500.0,0.00060547,120]
[340741683,1729770645893,-1698.95,0.00060547,120]
[340741684,1729770645902,-571.31628363,0.00060547,120]
[340741685,1729770645912,-500.0,0.00060547,120]
[340741686,1729770645921,-500.0,0.00060547,120]
[340741687,1729770645931,-563.54099355,0.00060547,120]
[340741688,1729770645942,-500.0,0.00060547,120]
[340741689,1729770645953,-500.0,0.00060547,60]
[340741690,1729770645963,-2000.0,0.00060547,120]
[340741691,1729770645972,-500.0,0.00060547,120]
[340741692,1729770645983,-500.0,0.00060547,120]
[340741693,1729770645994,-150.0,0.00060547,120]
[340741694,1729770646005,-521.92247371,0.00060547,90]
[340741695,1729770646015,-500.0,0.00060547,120]
[340741696,1729770646026,-500.0,0.00060547,120]
[340741697,1729770646036,-500.0,0.00060547,120]
[340741698,1729770646046,-500.0,0.00060547,120]
[340741699,1729770646056,-500.0,0.00060547,120]
[340741700,1729770646068,-547.98,0.00060547,120]
[340741701,1729770646084,-500.0,0.00060547,120]
[340741702,1729770646093,-1664.51,0.00060547,120]
[340741703,1729770646102,-1365.12,0.00060547,120]
[340741704,1729770646111,-558.83,0.00060547,120]
[340741705,1729770646120,-500.0,0.00060547,120]
[340741706,1729770646129,-500.0,0.00060547,120]
[340741707,1729770646138,-500.0,0.00060547,120]
[340741708,1729770646147,-500.0,0.00060547,120]
[340741709,1729770646157,-5079.61,0.00060547,120]
[340741710,1729770646166,-500.0,0.00060547,120]
[340741711,1729770646175,-612.41,0.00060547,14]
[340741712,1729770646184,-500.0,0.00060547,120]
[340741713,1729770646194,-500.0,0.00060547,120]
[340741714,1729770646202,-527.47717044,0.00060547,120]
[340741715,1729770646211,-505.21081073,0.00060547,120]
[340741716,1729770646221,-522.2321516,0.00060547,120]
[340741717,1729770646231,-510.14163034,0.00060547,120]
[340741718,1729770646242,-500.0,0.00060547,120]
[340741719,1729770646252,-537.86684674,0.00060547,120]
[340741720,1729770646263,-517.54247939,0.00060547,120]
[340741721,1729770646274,-535.77635493,0.00060547,120]
[340741722,1729770646288,-500.0,0.00060547,120]
[340741723,1729770646297,-518.16298152,0.00060547,120]
[340741724,1729770646308,-509.24496195,0.00060547,120]
[340741725,1729770646320,-518.0746928,0.00060547,120]
[340741726,1729770646331,-500.0,0.00060547,120]
[340741727,1729770646340,-523.35609,0.00060547,120]
[340741728,1729770646349,-518.073522,0.00060547,120]
[340741729,1729770646359,-514.72865669,0.00060547,120]
[340741730,1729770646368,-500.0,0.00060547,120]
[340741731,1729770646377,-500.0,0.00060547,120]
[340741732,1729770646386,-500.0,0.00060547,120]
[340741733,1729770646395,-500.0,0.00060547,120]
[340741734,1729770646404,-500.0,0.00060547,120]
[340741735,1729770646413,-500.0,0.00060547,120]
[340741736,1729770646422,-500.0,0.00060547,120]
[340741737,1729770646432,-500.0,0.00060547,120]
[340741738,1729770646441,-560.39,0.00060547,120]
[340741739,1729770646451,-500.0,0.00060547,120]
[340741740,1729770646460,-513.84957441,0.00060547,120]
[340741741,1729770646469,-511.97939308,0.00060547,120]
[340741742,1729770646479,-500.0,0.00060547,120]
[340741743,1729770646489,-500.0,0.00060547,120]
[340741744,1729770646520,-500.0,0.00060547,120]
[340741745,1729770646530,-500.0,0.00060547,120]
[340741746,1729770646539,-500.0,0.00060547,120]
[340741747,1729770646549,-405.83318182,0.00060547,120]
[340741748,1729770646559,-500.0,0.00060547,120]
[340741749,1729770646571,-679.18,0.00060547,120]
[340741750,1729770646580,-500.0,0.00060547,120]
[340741751,1729770646590,-500.0,0.00060547,120]
[340741752,1729770646599,-500.0,0.00060547,120]
[340741753,1729770646609,-500.0,0.00060547,120]
[340741754,1729770646619,-500.0,0.00060547,120]
[340741755,1729770646629,-212.57923068,0.00060547,120]
[340741756,1729770646639,-500.0,0.00060547,120]
[340741757,1729770646648,-500.0,0.00060547,120]
[340741758,1729770646658,-859.58,0.00060547,120]
[340741759,1729770646680,-500.0,0.00060547,120]
[340741760,1729770646690,-525.06035301,0.00060547,120]
[340741761,1729770646699,-500.0,0.00060547,120]
[340741762,1729770646710,-500.0,0.00060547,120]
[340741763,1729770646720,-500.0,0.00060547,120]
[340741764,1729770646730,-500.0,0.00060547,120]
[340741765,1729770646740,-500.0,0.00060547,120]
[340741766,1729770646749,-500.0,0.00060547,120]
[340741767,1729770646760,-507.54356046,0.00060547,120]
[340741768,1729770646769,-3575.92,0.00060547,120]
[340741769,1729770646779,-500.0,0.00060547,120]
[340741770,1729770646788,-515.11852515,0.00060547,120]
[340741771,1729770646798,-500.0,0.00060547,120]
[340741772,1729770646808,-500.0,0.00060547,120]
[340741773,1729770646818,-503.01493698,0.00060547,120]
[340741774,1729770646828,-720.96,0.00060547,120]
[340741775,1729770646837,-500.0,0.00060547,120]
[340741776,1729770646847,-500.0,0.00060547,120]
[340741777,1729770646857,-500.0,0.00060547,120]
[340741778,1729770646867,-442.01419055,0.00060547,120]
[340741779,1729770646876,-500.0,0.00060547,120]
[340741780,1729770646886,-500.0,0.00060547,120]
[340741781,1729770646895,-500.0,0.00060547,120]
[340741782,1729770646905,-508.44449858,0.00060547,120]
[340741783,1729770646915,-500.0,0.00060547,120]
[340741784,1729770646925,-500.0,0.00060547,120]
[340741785,1729770646935,-500.0,0.00060547,120]
[340741786,1729770646945,-500.0,0.00060547,120]
[340741787,1729770646955,-902.51,0.00060547,120]
[340741788,1729770646965,-157.12378,0.00060547,120]
[340741789,1729770646975,-500.0,0.00060547,120]
[340741790,1729770646985,-157.123788,0.00060547,120]
[340741791,1729770646996,-500.0,0.00060547,120]
[340741792,1729770647006,-500.0,0.00060547,120]
[340741793,1729770647015,-541.21,0.00060547,120]
[340741794,1729770647025,-500.0,0.00060547,120]
[340741795,1729770647034,-500.0,0.00060547,120]
[340741796,1729770647043,-500.0,0.00060547,120]
[340741797,1729770647115,-500.0,0.00060547,120]
[340741798,1729770647132,-500.0,0.00060547,120]
[340741799,1729770647142,-500.0,0.00060547,120]
[340741800,1729770647152,-500.0,0.00060547,120]
[340741801,1729770647162,-898.97,0.00060547,120]
[340741802,1729770647172,-500.0,0.00060547,120]
[340741803,1729770647183,-500.0,0.00060547,120]
[340741804,1729770647194,-500.0,0.00060547,120]
[340741805,1729770647203,-883.91,0.00060547,120]
[340741806,1729770647214,-500.0,0.00060547,120]
[340741807,1729770647224,-500.0,0.00060547,120]
[340741808,1729770647235,-622.25,0.00060547,120]
[340741809,1729770647245,-4880.54,0.00060547,120]
[340741810,1729770647255,-898.7,0.00060547,120]
[340741811,1729770647265,-1555.96,0.00060547,120]
[340741812,1729770647276,-500.0,0.00060547,120]
[340741813,1729770647289,-500.0,0.00060547,120]
[340741814,1729770647299,-500.0,0.00060547,120]
[340741815,1729770647310,-1699.04,0.00060547,120]
[340741816,1729770647320,-500.0,0.00060547,120]
[340741817,1729770647331,-220.02185602,0.00060547,120]
[340741818,1729770647340,-500.0,0.00060547,120]
[340741819,1729770647350,-500.0,0.00060547,120]
[340741820,1729770647361,-561.05211182,0.00060547,120]
[340741821,1729770647372,-764.73,0.00060547,120]
[340741822,1729770647381,-500.0,0.00060547,120]
[340741823,1729770647391,-663.54,0.00060547,120]
[340741824,1729770647402,-500.0,0.00060547,120]
[340741825,1729770647412,-500.0,0.00060547,120]
[340741826,1729770647422,-898.61,0.00060547,120]
[340741827,1729770647431,-551.5266791,0.00060547,120]
[340741828,1729770647441,-500.0,0.00060547,120]
[340741829,1729770647451,-500.0,0.00060547,120]
[340741830,1729770647461,-1452.21,0.00060547,120]
[340741831,1729770647471,-13644.44,0.00060547,120]
[340741832,1729770647481,-500.0,0.00060547,120]
[340741833,1729770647490,-500.0,0.00060547,120]
[340741834,1729770647500,-500.0,0.00060547,120]
[340741835,1729770647510,-500.0,0.00060547,120]
[340741836,1729770647521,-500.0,0.00060547,120]
[340741837,1729770647531,-500.0,0.00060547,120]
[340741838,1729770647541,-150.0,0.00060547,120]
[340741839,1729770647552,-500.0,0.00060547,120]
[340741840,1729770647561,-510.25,0.00060547,120]
[340741841,1729770647571,-539.88,0.00060547,120]
[340741842,1729770647581,-16013.8,0.00060547,5]
[340741843,1729770647591,-500.0,0.00060547,120]
[340741844,1729770647604,-611.30447078,0.00060547,120]